[Event "*** Titled Tuesday Blitz"]
[Site "Chess.com"]
[Date "2021.03.16"]
[Round "7"]
[White "Sychev_Klementy"]
[Black "Meri-Arabidze"]
[Result "1/2-1/2"]
[WhiteElo "2866"]
[BlackElo "2662"]
[TimeControl "180+1"]
[EndTime "11:18:57 PDT"]
[Termination "Game drawn by repetition"]

1. e4 {[%clk 0:03:00.9]} 1... c5 {[%clk 0:02:59.9]} 2. Nf3 {[%clk 0:02:58.2]}
2... e6 {[%clk 0:03:00.8]} 3. b3 {[%clk 0:02:53]} 3... b6 {[%clk 0:03:00.2]} 4.
Bb2 {[%clk 0:02:52.6]} 4... Bb7 {[%clk 0:03:00.3]} 5. Qe2 {[%clk 0:02:53.2]}
5... Nc6 {[%clk 0:03:00.3]} 6. Nc3 {[%clk 0:02:51.9]} 6... Nf6 {[%clk
0:02:58.4]} 7. O-O-O {[%clk 0:02:51.2]} 7... Nd4 {[%clk 0:02:57.1]} 8. Qe3
{[%clk 0:02:50.6]} 8... Nxf3 {[%clk 0:02:53.6]} 9. gxf3 {[%clk 0:02:51.5]} 9...
Be7 {[%clk 0:02:21.4]} 10. Rg1 {[%clk 0:02:49.4]} 10... g6 {[%clk 0:02:21.4]}
11. Qh6 {[%clk 0:02:38.4]} 11... Bf8 {[%clk 0:02:17.3]} 12. Qf4 {[%clk
0:02:34.9]} 12... Bg7 {[%clk 0:02:12]} 13. Qd6 {[%clk 0:02:10.5]} 13... Bf8
{[%clk 0:02:08.7]} 14. Qf4 {[%clk 0:01:46.4]} 14... Bg7 {[%clk 0:02:08.4]} 15.
Nb5 {[%clk 0:01:45.9]} 15... O-O {[%clk 0:02:07.8]} 16. Nd6 {[%clk 0:01:45.4]}
16... Bc6 {[%clk 0:02:06.7]} 17. h4 {[%clk 0:01:30.3]} 17... Nh5 {[%clk
0:01:53.8]} 18. Qh2 {[%clk 0:01:29.1]} 18... Bxb2+ {[%clk 0:01:49.7]} 19. Kxb2
{[%clk 0:01:28.9]} 19... Qf6+ {[%clk 0:01:49.6]} 20. e5 {[%clk 0:01:17.2]} 20...
Qf4 {[%clk 0:01:45.4]} 21. Qxf4 {[%clk 0:01:11.2]} 21... Nxf4 {[%clk 0:01:46.3]}
22. Ne4 {[%clk 0:01:00.9]} 22... Kg7 {[%clk 0:01:28.7]} 23. d4 {[%clk 0:00:58]}
23... Bxe4 {[%clk 0:00:56.4]} 24. fxe4 {[%clk 0:00:57.1]} 24... Rac8 {[%clk
0:00:48.2]} 25. Ba6 {[%clk 0:00:44.9]} 25... Rc7 {[%clk 0:00:45.9]} 26. d5
{[%clk 0:00:42.8]} 26... exd5 {[%clk 0:00:38.9]} 27. exd5 {[%clk 0:00:43.7]}
27... d6 {[%clk 0:00:38.8]} 28. exd6 {[%clk 0:00:37.7]} 28... Rd7 {[%clk
0:00:39.1]} 29. Rg4 {[%clk 0:00:36.5]} 29... Nh5 {[%clk 0:00:36.4]} 30. Be2
{[%clk 0:00:29.1]} 30... Rxd6 {[%clk 0:00:35.8]} 31. Rg5 {[%clk 0:00:29.4]}
31... Nf6 {[%clk 0:00:33.1]} 32. Re5 {[%clk 0:00:27.3]} 32... Re8 {[%clk
0:00:30.2]} 33. f4 {[%clk 0:00:20.6]} 33... Red8 {[%clk 0:00:21.7]} 34. c4
{[%clk 0:00:19.9]} 34... Nd7 {[%clk 0:00:17.4]} 35. Re3 {[%clk 0:00:19.3]} 35...
Kf8 {[%clk 0:00:17.3]} 36. Bf3 {[%clk 0:00:19.5]} 36... Re8 {[%clk 0:00:16.9]}
37. Rxe8+ {[%clk 0:00:19.2]} 37... Kxe8 {[%clk 0:00:17.8]} 38. Rf1 {[%clk
0:00:19.1]} 38... Nf6 {[%clk 0:00:16.1]} 39. Kc3 {[%clk 0:00:18.6]} 39... Kf8
{[%clk 0:00:16.3]} 40. a3 {[%clk 0:00:18.8]} 40... Ne8 {[%clk 0:00:16]} 41. b4
{[%clk 0:00:18.7]} 41... Rf6 {[%clk 0:00:16.3]} 42. Be2 {[%clk 0:00:17.5]} 42...
Nd6 {[%clk 0:00:16]} 43. Bd3 {[%clk 0:00:17.9]} 43... h6 {[%clk 0:00:13.9]} 44.
Kd2 {[%clk 0:00:17.8]} 44... Kg7 {[%clk 0:00:13.2]} 45. Ke3 {[%clk 0:00:17.8]}
45... Ne8 {[%clk 0:00:09.8]} 46. bxc5 {[%clk 0:00:17.8]} 46... bxc5 {[%clk
0:00:09.8]} 47. Rb1 {[%clk 0:00:18.1]} 47... Ra6 {[%clk 0:00:09.8]} 48. Rb8
{[%clk 0:00:16.5]} 48... Nd6 {[%clk 0:00:09.5]} 49. Rd8 {[%clk 0:00:16.5]} 49...
Nb7 {[%clk 0:00:06.7]} 50. Rd7 {[%clk 0:00:16.3]} 50... Nd6 {[%clk 0:00:06.6]}
51. Rc7 {[%clk 0:00:16]} 51... Rxa3 {[%clk 0:00:04.3]} 52. Rxc5 {[%clk
0:00:16.3]} 52... Nf5+ {[%clk 0:00:04.7]} 53. Kd2 {[%clk 0:00:15.6]} 53... Ra2+
{[%clk 0:00:04.2]} 54. Kc3 {[%clk 0:00:15.2]} 54... Ra3+ {[%clk 0:00:04.8]} 55.
Kd2 {[%clk 0:00:15.3]} 55... Ra2+ {[%clk 0:00:05]} 56. Kc1 {[%clk 0:00:15.7]}
56... Nd4 {[%clk 0:00:03.9]} 57. Rc7 {[%clk 0:00:15.3]} 57... Nb3+ {[%clk
0:00:04.2]} 58. Kb1 {[%clk 0:00:15.1]} 58... Rd2 {[%clk 0:00:04.6]} 59. Bc2
{[%clk 0:00:15.4]} 59... Nd4 {[%clk 0:00:04.8]} 60. Ba4 {[%clk 0:00:14.9]} 60...
Ne2 {[%clk 0:00:04.9]} 61. Be8 {[%clk 0:00:14.4]} 61... Nc3+ {[%clk 0:00:05]}
62. Kc1 {[%clk 0:00:14.7]} 62... Re2 {[%clk 0:00:05]} 63. Bxf7 {[%clk
0:00:13.5]} 63... Na2+ {[%clk 0:00:04.6]} 64. Kd1 {[%clk 0:00:13.8]} 64... Nc3+
{[%clk 0:00:05.5]} 65. Kc1 {[%clk 0:00:14.2]} 65... Na2+ {[%clk 0:00:06.2]} 66.
Kd1 {[%clk 0:00:14.7]} 66... Nc3+ {[%clk 0:00:06.7]} 67. Kc1 {[%clk 0:00:15.1]}
1/2-1/2

[Event "*** Titled Tuesday Blitz"]
[Site "Chess.com"]
[Date "2021.03.16"]
[Round "7"]
[White "nss13"]
[Black "politeplayer"]
[Result "1-0"]
[WhiteElo "2590"]
[BlackElo "2248"]
[TimeControl "180+1"]
[EndTime "11:19:05 PDT"]
[Termination "nss13 won by resignation"]

1. e4 {[%clk 0:03:00.9]} 1... c5 {[%clk 0:02:57.6]} 2. Nf3 {[%clk 0:03:00.8]}
2... d6 {[%clk 0:02:57.6]} 3. d4 {[%clk 0:03:01.1]} 3... cxd4 {[%clk 0:02:58.1]}
4. Nxd4 {[%clk 0:03:02]} 4... Nf6 {[%clk 0:02:58.6]} 5. f3 {[%clk 0:03:02.6]}
5... e5 {[%clk 0:02:56.9]} 6. Bb5+ {[%clk 0:03:02.4]} 6... Bd7 {[%clk
0:02:50.9]} 7. Bxd7+ {[%clk 0:03:02.1]} 7... Nbxd7 {[%clk 0:02:45.1]} 8. Nf5
{[%clk 0:03:03]} 8... Nc5 {[%clk 0:02:36.3]} 9. Bg5 {[%clk 0:03:01.9]} 9... g6
{[%clk 0:02:21.9]} 10. Ne3 {[%clk 0:02:57]} 10... Be7 {[%clk 0:02:10.2]} 11.
Bxf6 {[%clk 0:02:56.5]} 11... Bxf6 {[%clk 0:02:10]} 12. Nc3 {[%clk 0:02:57.4]}
12... Bh4+ {[%clk 0:02:00.1]} 13. g3 {[%clk 0:02:56.2]} 13... Bg5 {[%clk
0:02:00.2]} 14. Ned5 {[%clk 0:02:56]} 14... O-O {[%clk 0:01:55.2]} 15. O-O
{[%clk 0:02:48.8]} 15... Ne6 {[%clk 0:01:49.5]} 16. Qd3 {[%clk 0:02:41.5]} 16...
a6 {[%clk 0:01:44.2]} 17. a4 {[%clk 0:02:41]} 17... Rc8 {[%clk 0:01:42]} 18. Ne2
{[%clk 0:02:40.1]} 18... Nc7 {[%clk 0:01:27.8]} 19. Nxc7 {[%clk 0:02:36.4]}
19... Qxc7 {[%clk 0:01:26.8]} 20. c3 {[%clk 0:02:20]} 20... Qb6+ {[%clk
0:01:25.2]} 21. Kg2 {[%clk 0:02:20.2]} 21... Qxb2 {[%clk 0:01:15.8]} 22. Rfb1
{[%clk 0:02:20]} 22... Rxc3 {[%clk 0:01:15.4]} 23. Qxc3 {[%clk 0:02:07.9]} 23...
Qxe2+ {[%clk 0:01:15.1]} 24. Kh1 {[%clk 0:02:08.4]} 24... Be3 {[%clk 0:01:10.9]}
25. Rf1 {[%clk 0:02:04.1]} 25... Bd4 {[%clk 0:01:09.2]} 26. Qe1 {[%clk
0:01:58.4]} 26... Qc4 {[%clk 0:01:02.2]} 27. Rb1 {[%clk 0:01:54.8]} 27... b5
{[%clk 0:00:52]} 28. axb5 {[%clk 0:01:55.7]} 28... axb5 {[%clk 0:00:51.8]} 29.
Qb4 {[%clk 0:01:52.2]} 29... Qxb4 {[%clk 0:00:39.5]} 30. Rxb4 {[%clk 0:01:53.1]}
30... Rc8 {[%clk 0:00:37.9]} 31. Rxb5 {[%clk 0:01:45.1]} 31... Rc2 {[%clk
0:00:37]} 32. Rd5 {[%clk 0:01:31.6]} 32... Bc5 {[%clk 0:00:36.3]} 33. f4 {[%clk
0:01:32.2]} 33... f6 {[%clk 0:00:33.8]} 34. fxe5 {[%clk 0:01:04.5]} 34... fxe5
{[%clk 0:00:33.1]} 35. Rd3 {[%clk 0:01:05]} 35... Re2 {[%clk 0:00:30]} 36. Rb3
{[%clk 0:01:04.9]} 36... Rxe4 {[%clk 0:00:28.4]} 37. Rb7 {[%clk 0:01:05]} 37...
d5 {[%clk 0:00:20.4]} 38. Rff7 {[%clk 0:01:01.3]} 38... Bf8 {[%clk 0:00:19.3]}
39. Rxh7 {[%clk 0:00:50.1]} 39... Re1+ {[%clk 0:00:17.5]} 40. Kg2 {[%clk
0:00:49.7]} 40... d4 {[%clk 0:00:17.6]} 41. Rhd7 {[%clk 0:00:49.6]} 41... Re2+
{[%clk 0:00:16.5]} 42. Kf3 {[%clk 0:00:47.7]} 42... Rxh2 {[%clk 0:00:15.7]} 43.
Rb8 {[%clk 0:00:44.3]} 43... Rh1 {[%clk 0:00:14.9]} 44. Kg2 {[%clk 0:00:37.9]}
44... Rh8 {[%clk 0:00:13.8]} 45. Kf3 {[%clk 0:00:31.5]} 45... g5 {[%clk
0:00:13.2]} 46. Ke4 {[%clk 0:00:30.5]} 46... d3 {[%clk 0:00:09.5]} 47. Kxd3
{[%clk 0:00:29.5]} 47... Rh3 {[%clk 0:00:07.2]} 48. Rdd8 {[%clk 0:00:21.1]}
48... Rxg3+ {[%clk 0:00:07.2]} 49. Ke2 {[%clk 0:00:21.8]} 49... Rg2+ {[%clk
0:00:07.3]} 50. Kf1 {[%clk 0:00:21.5]} 50... Rg4 {[%clk 0:00:06.3]} 51. Rxf8+
{[%clk 0:00:21.6]} 51... Kg7 {[%clk 0:00:06.8]} 52. Rfe8 {[%clk 0:00:19.5]}
52... Rf4+ {[%clk 0:00:06.2]} 53. Kg2 {[%clk 0:00:18.9]} 53... e4 {[%clk
0:00:06.7]} 54. Rb6 {[%clk 0:00:16.5]} 54... Rf5 {[%clk 0:00:05.5]} 55. Rxe4
{[%clk 0:00:15.3]} 55... Rd5 {[%clk 0:00:04.8]} 56. Re7+ {[%clk 0:00:14.8]}
56... Kf8 {[%clk 0:00:04.4]} 57. Rc7 {[%clk 0:00:14.7]} 57... Rd8 {[%clk
0:00:03.7]} 58. Kf3 {[%clk 0:00:13.1]} 58... Rd3+ {[%clk 0:00:02]} 59. Kg4
{[%clk 0:00:12.9]} 59... Rd8 {[%clk 0:00:02.4]} 60. Rbb7 {[%clk 0:00:12.6]}
60... Rd4+ {[%clk 0:00:01.3]} 61. Kxg5 {[%clk 0:00:12]} 61... Rd5+ {[%clk
0:00:01.8]} 62. Kf4 {[%clk 0:00:12]} 62... Rd4+ {[%clk 0:00:01.9]} 63. Ke5
{[%clk 0:00:12.4]} 63... Rd8 {[%clk 0:00:02.3]} 64. Rf7+ {[%clk 0:00:11.9]}
64... Kg8 {[%clk 0:00:01.8]} 65. Rg7+ {[%clk 0:00:12.5]} 65... Kh8 {[%clk
0:00:01.9]} 66. Rh7+ {[%clk 0:00:12.9]} 66... Kg8 {[%clk 0:00:02.2]} 67. Rbg7+
{[%clk 0:00:13.8]} 67... Kf8 {[%clk 0:00:02.2]} 68. Rh8+ {[%clk 0:00:14.5]}
68... Kxg7 {[%clk 0:00:02.6]} 69. Rxd8 {[%clk 0:00:15.4]} 1-0

[Event "*** Titled Tuesday Blitz"]
[Site "Chess.com"]
[Date "2021.03.16"]
[Round "7"]
[White "Niktlt"]
[Black "vinniethepooh"]
[Result "0-1"]
[WhiteElo "2506"]
[BlackElo "2706"]
[TimeControl "180+1"]
[EndTime "11:19:06 PDT"]
[Termination "vinniethepooh won by resignation"]

1. c4 {[%clk 0:02:59.3]} 1... Nf6 {[%clk 0:03:00]} 2. Nc3 {[%clk 0:02:58.9]}
2... e5 {[%clk 0:03:00.4]} 3. Nf3 {[%clk 0:02:58.7]} 3... Nc6 {[%clk 0:03:00.4]}
4. e4 {[%clk 0:02:59.1]} 4... Bb4 {[%clk 0:02:56]} 5. d3 {[%clk 0:02:58.9]} 5...
d6 {[%clk 0:02:56.2]} 6. g3 {[%clk 0:02:59.2]} 6... O-O {[%clk 0:02:54]} 7. Bg2
{[%clk 0:02:59.4]} 7... a6 {[%clk 0:02:53.7]} 8. a3 {[%clk 0:02:58.7]} 8... Bc5
{[%clk 0:02:53.8]} 9. O-O {[%clk 0:02:58.8]} 9... h6 {[%clk 0:02:49.1]} 10. h3
{[%clk 0:02:57.5]} 10... Nd4 {[%clk 0:02:39.1]} 11. Be3 {[%clk 0:02:52.4]} 11...
Bd7 {[%clk 0:02:16]} 12. Kh2 {[%clk 0:02:51.1]} 12... Qc8 {[%clk 0:02:10.7]} 13.
Nh4 {[%clk 0:02:36.2]} 13... g5 {[%clk 0:01:52.1]} 14. Nf3 {[%clk 0:02:05.9]}
14... g4 {[%clk 0:01:51.9]} 15. Ng1 {[%clk 0:01:54.1]} 15... gxh3 {[%clk
0:01:50.7]} 16. Bxh3 {[%clk 0:01:53.3]} 16... Bxh3 {[%clk 0:01:21.7]} 17. Nxh3
{[%clk 0:01:52.4]} 17... Ng4+ {[%clk 0:01:22.5]} 18. Kg2 {[%clk 0:01:52.4]}
18... f5 {[%clk 0:01:22.8]} 19. b4 {[%clk 0:01:37.7]} 19... Ba7 {[%clk
0:01:16.6]} 20. Nd5 {[%clk 0:01:33.7]} 20... Rf7 {[%clk 0:01:12.9]} 21. exf5
{[%clk 0:01:33.1]} 21... Qxf5 {[%clk 0:01:08.6]} 22. Ra2 {[%clk 0:01:30]} 22...
c6 {[%clk 0:01:08.1]} 23. Nc3 {[%clk 0:01:10.1]} 23... Raf8 {[%clk 0:01:08.5]}
24. Re1 {[%clk 0:00:59]} 24... b5 {[%clk 0:00:47.5]} 25. Ne4 {[%clk 0:00:56.2]}
25... Nf3 {[%clk 0:00:35]} 26. Bxa7 {[%clk 0:00:16.1]} 26... Nxe1+ {[%clk
0:00:27.2]} 27. Qxe1 {[%clk 0:00:17]} 27... Rxa7 {[%clk 0:00:27.3]} 28. Nxd6
{[%clk 0:00:17.3]} 28... Qxd3 {[%clk 0:00:25]} 29. c5 {[%clk 0:00:16.4]} 29...
Qd5+ {[%clk 0:00:20.4]} 30. Qe4 {[%clk 0:00:16.5]} 30... Qxa2 {[%clk 0:00:20.9]}
31. Qxg4+ {[%clk 0:00:16.6]} 31... Rg7 {[%clk 0:00:21.6]} 32. Qh5 {[%clk
0:00:14]} 32... Qd5+ {[%clk 0:00:21.5]} 33. Kg1 {[%clk 0:00:13.3]} 33... Qe6
{[%clk 0:00:14.4]} 34. Kg2 {[%clk 0:00:11.1]} 34... Qf6 {[%clk 0:00:13.2]} 35.
Qe2 {[%clk 0:00:10.6]} 35... Qe6 {[%clk 0:00:10.8]} 36. Ng1 {[%clk 0:00:09.7]}
36... Qd5+ {[%clk 0:00:11]} 37. Kf1 {[%clk 0:00:07.5]} 37... Rf6 {[%clk
0:00:09.1]} 38. Ne4 {[%clk 0:00:07.6]} 38... Re6 {[%clk 0:00:08.4]} 39. Kg2
{[%clk 0:00:07.5]} 39... Rf7 {[%clk 0:00:07.4]} 40. f3 {[%clk 0:00:07.1]} 40...
Rd7 {[%clk 0:00:06.7]} 41. Qe3 {[%clk 0:00:06.9]} 41... Qd3 {[%clk 0:00:06.7]}
42. Qc1 {[%clk 0:00:05.4]} 42... Rf7 {[%clk 0:00:05.7]} 43. Qe1 {[%clk
0:00:03.8]} 43... Rg6 {[%clk 0:00:06]} 44. g4 {[%clk 0:00:03.6]} 44... Qd4
{[%clk 0:00:06.4]} 45. Qg3 {[%clk 0:00:03.6]} 45... Qe3 {[%clk 0:00:06.1]} 46.
Nh3 {[%clk 0:00:03.7]} 46... Qd4 {[%clk 0:00:06]} 47. Nhf2 {[%clk 0:00:04.2]}
47... Qb2 {[%clk 0:00:05.3]} 48. Qh4 {[%clk 0:00:03.7]} 48... Re6 {[%clk
0:00:05.2]} 49. Qd8+ {[%clk 0:00:03.7]} 49... Kg7 {[%clk 0:00:05.8]} 50. Qh4
{[%clk 0:00:04.2]} 50... Qd4 {[%clk 0:00:06]} 51. Qg3 {[%clk 0:00:04.7]} 51...
Rg6 {[%clk 0:00:06.2]} 52. Qh4 {[%clk 0:00:04.5]} 52... Qe3 {[%clk 0:00:06.2]}
53. Qh3 {[%clk 0:00:04.9]} 53... Qf4 {[%clk 0:00:06.8]} 54. Qg3 {[%clk
0:00:04.5]} 54... Qxg3+ {[%clk 0:00:06.9]} 55. Kxg3 {[%clk 0:00:04.9]} 55... Rd7
{[%clk 0:00:07.6]} 56. Nd6 {[%clk 0:00:05.4]} 56... Rgxd6 {[%clk 0:00:07.9]} 57.
cxd6 {[%clk 0:00:05.9]} 57... Rxd6 {[%clk 0:00:08.8]} 58. Ne4 {[%clk 0:00:06.8]}
58... Rd3 {[%clk 0:00:09.2]} 59. g5 {[%clk 0:00:05.8]} 59... Rxa3 {[%clk
0:00:09.3]} 60. gxh6+ {[%clk 0:00:05.8]} 60... Kxh6 {[%clk 0:00:10.2]} 61. Kg4
{[%clk 0:00:06.7]} 61... Kg6 {[%clk 0:00:10.5]} 62. Nc5 {[%clk 0:00:06.8]} 62...
a5 {[%clk 0:00:10.1]} 63. bxa5 {[%clk 0:00:07.7]} 63... Rxa5 {[%clk 0:00:11]}
64. Nd7 {[%clk 0:00:08.6]} 64... b4 {[%clk 0:00:10.5]} 65. Nb8 {[%clk
0:00:08.7]} 65... b3 {[%clk 0:00:10.5]} 66. Nxc6 {[%clk 0:00:09.1]} 66... Ra4+
{[%clk 0:00:11]} 67. f4 {[%clk 0:00:07.8]} 67... b2 {[%clk 0:00:11.2]} 68. Nxe5+
{[%clk 0:00:07.9]} 68... Kg7 {[%clk 0:00:11.9]} 69. Nc6 {[%clk 0:00:06.7]} 69...
b1=Q {[%clk 0:00:11.9]} 70. Nd8 {[%clk 0:00:07.6]} 70... Qg6+ {[%clk 0:00:11.5]}
0-1

[Event "*** Titled Tuesday Blitz"]
[Site "Chess.com"]
[Date "2021.03.16"]
[Round "7"]
[White "IsaacWiebe"]
[Black "Julianos82"]
[Result "1-0"]
[WhiteElo "2265"]
[BlackElo "2384"]
[TimeControl "180+1"]
[EndTime "11:19:07 PDT"]
[Termination "IsaacWiebe won by resignation"]

1. d4 {[%clk 0:03:00.9]} 1... d5 {[%clk 0:02:58.9]} 2. c4 {[%clk 0:03:00]} 2...
dxc4 {[%clk 0:02:59.8]} 3. Nf3 {[%clk 0:02:59]} 3... c6 {[%clk 0:02:58.8]} 4. e3
{[%clk 0:02:57.4]} 4... Be6 {[%clk 0:02:58.4]} 5. Ne5 {[%clk 0:02:51.3]} 5...
Nf6 {[%clk 0:02:50]} 6. Bxc4 {[%clk 0:02:46.7]} 6... Bxc4 {[%clk 0:02:46.9]} 7.
Nxc4 {[%clk 0:02:47.6]} 7... e6 {[%clk 0:02:46.9]} 8. O-O {[%clk 0:02:47]} 8...
Nbd7 {[%clk 0:02:42.9]} 9. Nc3 {[%clk 0:02:46.2]} 9... Be7 {[%clk 0:02:40.6]}
10. Qe2 {[%clk 0:02:44]} 10... b5 {[%clk 0:02:31.3]} 11. Nd2 {[%clk 0:02:41.9]}
11... O-O {[%clk 0:02:28.1]} 12. a4 {[%clk 0:02:35.7]} 12... b4 {[%clk
0:02:25.9]} 13. Nce4 {[%clk 0:02:35]} 13... e5 {[%clk 0:02:22]} 14. Nxf6+ {[%clk
0:02:33.4]} 14... Bxf6 {[%clk 0:02:19.5]} 15. dxe5 {[%clk 0:02:16.9]} 15... Bxe5
{[%clk 0:02:07.6]} 16. Nf3 {[%clk 0:02:13.9]} 16... Bf6 {[%clk 0:02:03.3]} 17.
Rb1 {[%clk 0:02:11]} 17... Qe7 {[%clk 0:01:56.7]} 18. b3 {[%clk 0:02:09.8]}
18... Rfd8 {[%clk 0:01:47.7]} 19. Bb2 {[%clk 0:02:09.1]} 19... Nb6 {[%clk
0:01:45.3]} 20. Bxf6 {[%clk 0:02:07.9]} 20... Qxf6 {[%clk 0:01:46.2]} 21. Rfc1
{[%clk 0:02:05.4]} 21... Rd6 {[%clk 0:01:41.2]} 22. Nd4 {[%clk 0:01:55.9]} 22...
Rad8 {[%clk 0:01:39.7]} 23. Qa6 {[%clk 0:01:51.5]} 23... Nd5 {[%clk 0:01:26.2]}
24. Rxc6 {[%clk 0:01:36.8]} 24... Nc3 {[%clk 0:01:21.2]} 25. Rf1 {[%clk
0:01:17.7]} 25... h5 {[%clk 0:01:08.8]} 26. Rxd6 {[%clk 0:01:14.9]} 26... Rxd6
{[%clk 0:01:09.7]} 27. Qxa7 {[%clk 0:01:10.1]} 27... Ne4 {[%clk 0:00:50.6]} 28.
Qb8+ {[%clk 0:01:07.9]} 28... Kh7 {[%clk 0:00:49.2]} 29. Qxb4 {[%clk 0:01:05.8]}
29... h4 {[%clk 0:00:47]} 30. h3 {[%clk 0:01:00.4]} 30... Rd5 {[%clk 0:00:44.2]}
31. Ne2 {[%clk 0:00:54]} 31... Re5 {[%clk 0:00:34.2]} 32. Nf4 {[%clk 0:00:47.6]}
32... g5 {[%clk 0:00:34.1]} 33. Nd3 {[%clk 0:00:44.8]} 33... Re6 {[%clk
0:00:32.5]} 34. Qd4 {[%clk 0:00:37.7]} 34... Qf5 {[%clk 0:00:31.1]} 35. f3
{[%clk 0:00:34.5]} 35... Ng3 {[%clk 0:00:28.1]} 36. Re1 {[%clk 0:00:33.3]} 36...
Kg6 {[%clk 0:00:24.4]} 37. e4 {[%clk 0:00:33.4]} 37... Qa5 {[%clk 0:00:22.2]}
38. Qb4 {[%clk 0:00:21.6]} 38... Qa7+ {[%clk 0:00:20.6]} 39. Qc5 {[%clk
0:00:20.6]} 39... Qa6 {[%clk 0:00:20]} 40. Nf2 {[%clk 0:00:14.1]} 40... Rc6
{[%clk 0:00:17]} 41. Qd5 {[%clk 0:00:13.5]} 41... Rc2 {[%clk 0:00:15.8]} 42. Ng4
{[%clk 0:00:05.1]} 42... Qb6+ {[%clk 0:00:13.9]} 43. Kh2 {[%clk 0:00:03.9]}
43... Qc7 {[%clk 0:00:12.9]} 44. Ne5+ {[%clk 0:00:01.4]} 44... Kg7 {[%clk
0:00:11.9]} 45. Qxf7+ {[%clk 0:00:01.6]} 45... Qxf7 {[%clk 0:00:11.3]} 46. Nxf7
{[%clk 0:00:02.5]} 46... Kxf7 {[%clk 0:00:11.9]} 47. Rb1 {[%clk 0:00:03]} 47...
Nxe4 {[%clk 0:00:11.8]} 48. b4 {[%clk 0:00:03.3]} 48... Ng3 {[%clk 0:00:11.8]}
49. b5 {[%clk 0:00:03.6]} 49... Ke7 {[%clk 0:00:12.1]} 50. b6 {[%clk 0:00:03.9]}
50... Rc8 {[%clk 0:00:12.6]} 51. b7 {[%clk 0:00:04.4]} 51... Rb8 {[%clk
0:00:12.9]} 52. a5 {[%clk 0:00:05.2]} 52... Kd7 {[%clk 0:00:13.4]} 53. a6 {[%clk
0:00:06.1]} 53... Kc7 {[%clk 0:00:13.8]} 54. a7 {[%clk 0:00:06.3]} 54... Rxb7
{[%clk 0:00:14.2]} 55. a8=Q {[%clk 0:00:04.6]} 55... Rxb1 {[%clk 0:00:14.8]} 56.
Qa7+ {[%clk 0:00:04.9]} 56... Rb7 {[%clk 0:00:14.4]} 57. Qc5+ {[%clk 0:00:04.6]}
57... Kb8 {[%clk 0:00:14]} 58. Qxg5 {[%clk 0:00:05]} 58... Rb1 {[%clk
0:00:13.1]} 59. Qf4+ {[%clk 0:00:04.7]} 59... Ka8 {[%clk 0:00:12.1]} 60. Qf8+
{[%clk 0:00:04.3]} 60... Ka7 {[%clk 0:00:12.1]} 61. Qg7+ {[%clk 0:00:04.6]}
61... Ka8 {[%clk 0:00:12.3]} 62. Qh8+ {[%clk 0:00:04.6]} 62... Rb8 {[%clk
0:00:07.1]} 63. Qxh4 {[%clk 0:00:04.3]} 63... Nf1+ {[%clk 0:00:07.4]} 64. Kg1
{[%clk 0:00:04.5]} 64... Rb1 {[%clk 0:00:06.8]} 65. Qa4+ {[%clk 0:00:04]} 65...
Kb8 {[%clk 0:00:05.7]} 66. Qe8+ {[%clk 0:00:04.3]} 66... Ka7 {[%clk 0:00:05.4]}
67. Qe7+ {[%clk 0:00:04.3]} 67... Ka8 {[%clk 0:00:05.7]} 68. Qf8+ {[%clk
0:00:04.3]} 68... Ka7 {[%clk 0:00:06.1]} 69. Qg7+ {[%clk 0:00:04.5]} 69... Ka6
{[%clk 0:00:07]} 70. Qg6+ {[%clk 0:00:04.4]} 1-0